{"text_format":"1","workbook":"xlsx","n_sheets":1,"sheets":["Feuil1"],"not_rendered":{"charts":0,"images":0,"macros":0,"external_links":0,"defined_names":0,"comments":0,"pivot_tables":0},"unopened":[],"bounds":{"document_bytes":16777216,"sheet_cells":100000,"rows_first":2000,"rows_last":500,"rows_between":2000,"halvings":0,"cell_chars":16384,"cell_head_chars":4096},"cells_cut":0,"cells_raw":0,"read":"whole","date_system":"1900"}

{"sheet":"Feuil1","index":0,"n_rows":82,"n_cols":15,"rows_kept":82,"cut":false,"hidden":false,"merged":[]}
["DATEMOUVEMENT","CODE PRODUIT","Désignation Produit","QTE PREVUE","QTE IMPORTEE","QTE TOTALE IMPORTEE /COLIS","TRANSFERT","MAG EXPEDITEUR","Tansfert remonté par MIELLET ?","Categorie de la ref",null,null,null,"SOUS FAMILLE","TYPE"]
["2021-10-13",4231134000,"OSFAON NOEUD PAP TWILL IMPRIME FEUILLAGE",1,0,0,42610920,"BALARUC LE VIEUX","transfert annulé",{"$f":"VLOOKUP(RIGHT(LEFT(B2,4),3),N:O,2,0)","v":"ACCESSOIRES"},{"$f":"CONCATENATE(SUMIFS(B:B,J:J,J2,D:D,D2),D2)","v":"42311340001"},{"$f":"INDEX(J:J,MATCH(_xlfn.MAXIFS(K:K,D:D,D2),K:K,0))","v":{"$error":"#N/A"}},null,"011","GROSSES PIECES"]
["2021-10-13",4601210043,"PSPRESSO BASKET EN CUIR TIGE PERFOREE",4,0,0,42610920,"BALARUC LE VIEUX","transfert annulé",{"$f":"VLOOKUP(RIGHT(LEFT(B3,4),3),N:O,2,0)","v":"CHAUSSURES"},"46012100434",{"$f":"INDEX(J:J,MATCH(_xlfn.MAXIFS(K:K,D:D,D3),K:K,0))","v":{"$error":"#N/A"}},null,"012","GROSSES PIECES"]
["2021-10-13",4601210044,"PSPRESSO BASKET EN CUIR TIGE PERFOREE",1,0,0,42610920,"BALARUC LE VIEUX","transfert annulé","CHAUSSURES","46012100441",{"$error":"#N/A"},null,"031","GROSSES PIECES"]
["2021-10-13",4601216042,"PSBLEUTE BASKET SEMELLE TYPE RUNNING",2,0,0,42610920,"BALARUC LE VIEUX","transfert annulé","CHAUSSURES","46012160422",{"$error":"#N/A"},null,"033","GROSSES PIECES"]
["2021-10-18",4121039002,"IBOOST IR Access Price navy",1,1,24,2911204,"BORDEAUX LAC","transfert annulé","PULLS","370900700381",{"$error":"#N/A"},null,"051","VESTES"]
["2021-10-18",4121112004,"Armuré coloris humus",3,3,24,2911204,"BORDEAUX LAC","transfert annulé","PULLS","123633690133",{"$error":"#N/A"},null,"053","VESTES"]
["2021-10-18",4121112005,"Armuré coloris humus",1,1,24,2911204,"BORDEAUX LAC","transfert annulé","PULLS","370900700381",{"$error":"#N/A"},null,"054","VESTES"]
["2021-10-18",4121122003,"G-FANTS Pr. de Galles marron fond gris",1,1,24,2911204,"BORDEAUX LAC","transfert annulé","PULLS","370900700381",{"$error":"#N/A"},null,"061","PANTALONS"]
["2021-10-18",4121124003,"G-LAPIS Pr. Carreaux camel fond d.navy",2,2,24,2911204,"BORDEAUX LAC","transfert annulé","PULLS","123634060102",{"$error":"#N/A"},null,"062","PANTALONS"]
["2021-10-18",4121124005,"G-LAPIS Pr. Carreaux camel fond d.navy",3,3,24,2911204,"BORDEAUX LAC","transfert annulé","PULLS","123633690133",{"$error":"#N/A"},null,"063","PANTALONS"]
["2021-10-18",4121124006,"G-LAPIS Pr. Carreaux camel fond d.navy",1,1,24,2911204,"BORDEAUX LAC","transfert annulé","PULLS","370900700381",{"$error":"#N/A"},null,"064","PANTALONS"]
["2021-10-18",4121129002,"G-ELLEH Toile unie bleu horizon",1,1,24,2911204,"BORDEAUX LAC","transfert annulé","PULLS","370900700381",{"$error":"#N/A"},null,"066","PIECES ÉTÉ"]
["2021-10-18",4121129006,"G-ELLEH Toile unie bleu horizon",1,1,24,2911204,"BORDEAUX LAC","transfert annulé","PULLS","370900700381",{"$error":"#N/A"},null,"068","PANTALONS"]
["2021-10-18",4121133004,"G-DEDEY Carreaux fenêtre gris",3,3,24,2911204,"BORDEAUX LAC","transfert annulé","PULLS","123633690133",{"$error":"#N/A"},null,"069","PANTALONS"]
["2021-10-18",4121133006,"G-DEDEY Carreaux fenêtre gris",1,1,24,2911204,"BORDEAUX LAC","transfert annulé","PULLS","370900700381",{"$error":"#N/A"},null,"111","GROSSES PIECES"]
["2021-10-18",4121141002,"G-FISRT Pr. De Galles bleu/blanc gauffré",1,1,24,2911204,"BORDEAUX LAC","transfert annulé","PULLS","370900700381",{"$error":"#N/A"},null,"113","GROSSES PIECES"]
["2021-10-18",4121141003,"G-FISRT Pr. De Galles bleu/blanc gauffré",2,2,24,2911204,"BORDEAUX LAC","transfert annulé","PULLS","123634060102",{"$error":"#N/A"},null,"115","GROSSES PIECES"]
["2021-10-18",4121141004,"G-FISRT Pr. De Galles bleu/blanc gauffré",2,2,24,2911204,"BORDEAUX LAC","transfert annulé","PULLS","123634060102",{"$error":"#N/A"},null,"117","GROSSES PIECES"]
["2021-10-18",4121141006,"G-FISRT Pr. De Galles bleu/blanc gauffré",1,1,24,2911204,"BORDEAUX LAC","transfert annulé","PULLS","370900700381",{"$error":"#N/A"},null,"121","PULLS"]
["2021-10-18",4186469002,"LT-2186 1 TONE PIQUE BASIC POLO",1,1,9,2911207,"BORDEAUX LAC","transfert annulé","PIECES ÉTÉ","415200971601",{"$error":"#N/A"},null,"122","PULLS"]
["2021-10-18",4186481002,"ACTUA-2186 JUNGLE ALL OVER JACQUARD",1,1,9,2911207,"BORDEAUX LAC","transfert annulé","PIECES ÉTÉ","415200971601",{"$error":"#N/A"},null,"131","GROSSES PIECES"]
["2021-10-18",4189690003,"ACTUA-2189 FLOWER PHOTO PRINT",1,1,9,2911207,"BORDEAUX LAC","transfert annulé","PIECES ÉTÉ","415200971601",{"$error":"#N/A"},null,"132","GROSSES PIECES"]
["2021-10-18",4189690005,"ACTUA-2189 FLOWER PHOTO PRINT",2,2,9,2911207,"BORDEAUX LAC","transfert annulé","PIECES ÉTÉ","82559320532",{"$error":"#N/A"},null,"163","PIECES HIVER"]
["2021-10-18",4189691003,"ACTUA-2189 ZEBRA HOUND PHOTO PRINT",1,1,9,2911207,"BORDEAUX LAC","transfert annulé","PIECES ÉTÉ","415200971601",{"$error":"#N/A"},null,"164","PIECES HIVER"]
["2021-10-18",4189697003,"ACTUA-2189  ZEBRA EYE FOCUS PRINT",1,1,9,2911207,"BORDEAUX LAC","transfert annulé","PIECES ÉTÉ","415200971601",{"$error":"#N/A"},null,"165","PIECES ÉTÉ"]
["2021-10-18",4189698003,"ACTUA-2189 CACTUS DRAWING PRINT",1,1,9,2911207,"BORDEAUX LAC","transfert annulé","PIECES ÉTÉ","415200971601",{"$error":"#N/A"},null,"166","PIECES ÉTÉ"]
["2021-10-18",4189699006,"ACTUA-2189 GIRAFFE SUNSET  PRINT",1,1,9,2911207,"BORDEAUX LAC","transfert annulé","PIECES ÉTÉ","415200971601",{"$error":"#N/A"},null,"181","PULLS"]
["2021-10-18",4115185048,"LT 115 - MTONI Blouson coton enduit",1,1,20,4812304,"MERIGNAC SOLEIL","transfert annulé","GROSSES PIECES","41151850481",{"$error":"#N/A"},null,"182","PULLS"]
["2021-10-18",4115185050,"LT 115 - MTONI Blouson coton enduit",6,6,20,4812304,"MERIGNAC SOLEIL","transfert annulé","GROSSES PIECES","82303701026",{"$error":"#N/A"},null,"183","PULLS"]
["2021-10-18",4115185052,"LT 115 - MTONI Blouson coton enduit",6,6,20,4812304,"MERIGNAC SOLEIL","transfert annulé","GROSSES PIECES","82303701026",{"$error":"#N/A"},null,"184","PULLS"]
["2021-10-18",4115185054,"LT 115 - MTONI Blouson coton enduit",4,4,20,4812304,"MERIGNAC SOLEIL","transfert annulé","GROSSES PIECES","41151850544",{"$error":"#N/A"},null,"185","PULLS"]
["2021-10-18",4115185056,"LT 115 - MTONI Blouson coton enduit",3,3,20,4812304,"MERIGNAC SOLEIL","transfert annulé","GROSSES PIECES","41151850563",{"$error":"#N/A"},null,"186","PIECES ÉTÉ"]
["2021-10-18",4066222042,"LT 066 - Bermuda basic coton ",5,5,38,4812305,"MERIGNAC SOLEIL","transfert annulé","PIECES ÉTÉ","81324440865",{"$error":"#N/A"},null,"187","PIECES ÉTÉ"]
["2021-10-18",4066222044,"LT 066 - Bermuda basic coton ",5,5,38,4812305,"MERIGNAC SOLEIL","transfert annulé","PIECES ÉTÉ","81324440865",{"$error":"#N/A"},null,"188","PULLS"]
["2021-10-18",4066222046,"LT 066 - Bermuda basic coton ",1,1,38,4812305,"MERIGNAC SOLEIL","transfert annulé","PIECES ÉTÉ","415200971601",{"$error":"#N/A"},null,"189","PIECES ÉTÉ"]
["2021-10-18",4066222048,"LT 066 - Bermuda basic coton ",1,1,38,4812305,"MERIGNAC SOLEIL","transfert annulé","PIECES ÉTÉ","415200971601",{"$error":"#N/A"},null,"191","PIECES ÉTÉ"]
["2021-10-18",4066228040,"LT 066 - Bermuda basic coton",3,3,38,4812305,"MERIGNAC SOLEIL","transfert annulé","PIECES ÉTÉ","121987121223",{"$error":"#N/A"},null,"192","PIECES ÉTÉ"]
["2021-10-18",4066228042,"LT 066 - Bermuda basic coton",4,4,38,4812305,"MERIGNAC SOLEIL","transfert annulé","PIECES ÉTÉ","121987121284",{"$error":"#N/A"},null,"199","PIECES ÉTÉ"]
["2021-10-18",4066228044,"LT 066 - Bermuda basic coton",1,1,38,4812305,"MERIGNAC SOLEIL","transfert annulé","PIECES ÉTÉ","415200971601",{"$error":"#N/A"},null,"231","ACCESSOIRES"]
["2021-10-18",4066242036,"LT 066 - Bermuda basic coton",3,3,38,4812305,"MERIGNAC SOLEIL","transfert annulé","PIECES ÉTÉ","121987121223",{"$error":"#N/A"},null,"232","ACCESSOIRES"]
["2021-10-18",4066242042,"LT 066 - Bermuda basic coton",4,4,38,4812305,"MERIGNAC SOLEIL","transfert annulé","PIECES ÉTÉ","121987121284",{"$error":"#N/A"},null,"233","ACCESSOIRES"]
["2021-10-18",4066242044,"LT 066 - Bermuda basic coton",4,4,38,4812305,"MERIGNAC SOLEIL","transfert annulé","PIECES ÉTÉ","121987121284",{"$error":"#N/A"},null,"235","ACCESSOIRES"]
["2021-10-18",4066242046,"LT 066 - Bermuda basic coton",3,3,38,4812305,"MERIGNAC SOLEIL","transfert annulé","PIECES ÉTÉ","121987121223",{"$error":"#N/A"},null,"236","ACCESSOIRES"]
["2021-10-18",4066242048,"LT 066 - Bermuda basic coton",2,2,38,4812305,"MERIGNAC SOLEIL","transfert annulé","PIECES ÉTÉ","82559320532",{"$error":"#N/A"},null,"237","ACCESSOIRES"]
["2021-10-18",4068130044,"LT 068 - MADN Jean denim clean city",1,1,38,4812305,"MERIGNAC SOLEIL","transfert annulé","PANTALONS","81363150801",{"$error":"#N/A"},null,"241","ACCESSOIRES"]
["2021-10-18",4068185036,"LT 068 - PABLO jean regular abrasions",1,1,38,4812305,"MERIGNAC SOLEIL","transfert annulé","PANTALONS","81363150801",{"$error":"#N/A"},null,"242","ACCESSOIRES"]
[null,null,null,null,null,null,null,null,null,null,null,null,null,"243","ACCESSOIRES"]
[null,null,null,null,null,null,null,null,null,null,null,null,null,"244","ACCESSOIRES"]
[null,null,null,null,null,null,null,null,null,null,null,null,null,"246","ACCESSOIRES"]
[null,null,null,null,null,null,null,null,null,null,null,null,null,"247","ACCESSOIRES"]
[null,null,null,null,null,null,null,null,null,null,null,null,null,"249","ACCESSOIRES"]
[null,null,null,null,null,null,null,null,null,null,null,null,null,"252","ACCESSOIRES"]
[null,null,null,null,null,null,null,null,null,null,null,null,null,"253","ACCESSOIRES"]
[null,null,null,null,null,null,null,null,null,null,null,null,null,"254","ACCESSOIRES"]
[null,null,null,null,null,null,null,null,null,null,null,null,null,"255","ACCESSOIRES"]
[null,null,null,null,null,null,null,null,null,null,null,null,null,"256","ACCESSOIRES"]
[null,null,null,null,null,null,null,null,null,null,null,null,null,"261","ACCESSOIRES"]
[null,null,null,null,null,null,null,null,null,null,null,null,null,"262","ACCESSOIRES"]
[null,null,null,null,null,null,null,null,null,null,null,null,null,"263","ACCESSOIRES"]
[null,null,null,null,null,null,null,null,null,null,null,null,null,"264","ACCESSOIRES"]
[null,null,null,null,null,null,null,null,null,null,null,null,null,"401","ACCESSOIRES"]
[null,null,null,null,null,null,null,null,null,null,null,null,null,"403","ACCESSOIRES"]
[null,null,null,null,null,null,null,null,null,null,null,null,null,"601","CHAUSSURES"]
[null,null,null,null,null,null,null,null,null,null,null,null,null,"701","COP"]
[null,null,null,null,null,null,null,null,null,null,null,null,null,"702","COP"]
[null,null,null,null,null,null,null,null,null,null,null,null,null,"703","COP"]
[null,null,null,null,null,null,null,null,null,null,null,null,null,"234","ACCESSOIRES"]
[null,null,null,null,null,null,null,null,null,null,null,null,null,"257","ACCESSOIRES"]
[null,null,null,null,null,null,null,null,null,null,null,null,null,"801","ACCESSOIRES"]
[null,null,null,null,null,null,null,null,null,null,null,null,null,"802","ACCESSOIRES"]
[null,null,null,null,null,null,null,null,null,null,null,null,null,"804","ACCESSOIRES"]
[null,null,null,null,null,null,null,null,null,null,null,null,null,"805","ACCESSOIRES"]
[null,null,null,null,null,null,null,null,null,null,null,null,null,"806","ACCESSOIRES"]
[null,null,null,null,null,null,null,null,null,null,null,null,null,"808","ACCESSOIRES"]
[null,null,null,null,null,null,null,null,null,null,null,null,null,"809","ACCESSOIRES"]
[null,null,null,null,null,null,null,null,null,null,null,null,null,"811","ACCESSOIRES"]
[null,null,null,null,null,null,null,null,null,null,null,null,null,"812","ACCESSOIRES"]
[null,null,null,null,null,null,null,null,null,null,null,null,null,"813","ACCESSOIRES"]
[null,null,null,null,null,null,null,null,null,null,null,null,null,"814","ACCESSOIRES"]
[null,null,null,null,null,null,null,null,null,null,null,null,null,"815","ACCESSOIRES"]
[null,null,null,null,null,null,null,null,null,null,null,null,null,"816","ACCESSOIRES"]